bitfinex/quotes_ETHUSD_20240910
["timestamp","ask_amount","ask_price","bid_price","bid_amount"]
[1725994166043,31.49215969,2379.8,2379.7,0.0053971]
[1725994166248,34.24002626,2379.8,2379.7,0.0053971]
[1725994166614,34.24002626,2379.8,2378.9,0.0415829]
[1725994166615,8.40688,2379.0,2378.9,0.0415829]
[1725994166819,8.40688,2379.0,2377.3,2.85788002]
[1725994166820,4.20399,2378.7,2377.3,0.3575]
[1725994167024,2.4196,2379.1,2377.3,0.3575]
[1725994167026,4.2057,2377.8,2377.3,0.3575]
[1725994167234,3.0,2377.7,2377.3,0.3575]
[1725994167735,7.20586,2377.7,2377.2,0.0415829]
[1725994167935,3.53795093,2377.7,2377.2,0.0415829]
[1725994168164,8.43169062,2377.7,2377.2,0.0415829]
[1725994168368,4.20592,2377.6,2377.2,0.0415829]
[1725994168672,7.20611,2377.5,2377.2,0.0415829]
[1725994168820,7.75611,2377.5,2377.2,0.0415829]
[1725994169166,4.20629,2377.4,2377.2,0.0415829]
[1725994169462,0.55,2377.3,2377.2,0.0415829]
[1725994170333,4.20645,2377.3,2377.2,0.0415829]
[1725994170532,8.9629,2377.3,2377.2,0.0415829]
[1725994170718,7.75645,2377.3,2377.2,0.0415829]
[1725994170917,8.587095,2377.3,2377.2,0.0415829]
[1725994171554,12.793545,2377.3,2377.2,0.0415829]
[1725994171877,8.587095,2377.3,2377.2,0.0415829]
[1725994173364,12.793545,2377.3,2377.2,0.0415829]
[1725994173561,8.587095,2377.3,2377.2,0.0415829]
[1725994173918,12.793545,2377.3,2377.2,0.0415829]
[1725994174145,8.587095,2377.3,2377.2,0.0415829]
[1725994174564,12.793545,2377.3,2377.2,0.0415829]
[1725994180027,3.0,2377.3,2377.2,0.0415829]
[1725994180781,3.59634738,2377.7,2377.2,0.0415829]
[1725994180955,4.2053,2378.0,2377.3,0.3575]
[1725994181122,4.20555,2377.9,2377.3,0.3575]
[1725994181327,4.20554,2377.9,2377.3,0.3575]
[1725994181569,8.41103,2377.9,2377.3,0.3575]
[1725994181927,8.41098,2377.9,2377.3,0.3575]
[1725994182327,3.0,2377.8,2377.3,0.3575]
[1725994183080,7.20533,2378.0,2377.3,0.3575]
[1725994184424,4.2054,2377.9,2377.3,0.3575]
[1725994184625,3.0,2377.8,2377.3,0.3575]
[1725994184854,0.55,2377.7,2377.3,0.3575]
[1725994185084,4.86340912,2378.6,2377.3,0.3575]
[1725994185085,4.20449,2378.5,2377.3,0.3575]
[1725994185374,4.20452,2378.4,2377.3,0.3575]
[1725994185609,4.2045,2378.4,2377.3,0.3575]
[1725994185871,4.20405,2378.7,2377.4,0.08411886]
[1725994186171,3.59634738,2379.1,2377.5,0.3575]
[1725994186321,3.59634738,2379.1,2377.7,0.3575]
[1725994186322,7.79975738,2379.1,2377.7,0.3575]
[1725994186522,7.79975738,2379.1,2377.5,0.24416189]
[1725994186523,7.79975738,2379.1,2377.9,0.3575]
[1725994186763,4.20345,2379.0,2377.9,0.3575]
[1725994186968,3.59634738,2379.1,2378.0,0.08409761]
[1725994187175,7.42832646,2379.5,2378.0,0.08409761]
[1725994187176,4.20265,2379.5,2378.1,0.3575]
[1725994187355,4.20232,2379.7,2378.3,0.3575]
[1725994187561,4.20232,2379.7,2378.4,0.44157117]
[1725994187735,4.20161,2380.1,2378.4,0.44157117]
[1725994188139,4.20168,2380.0,2378.5,0.3575]
[1725994188343,4.2016,2380.1,2378.7,0.3575]
[1725994188561,4.2016,2380.1,2378.9,0.3575]
[1725994188866,7.79731738,2380.4,2379.0,0.3575]
[1725994189185,7.79731738,2380.4,2379.1,0.3575]
[1725994189186,5.47224241,2380.4,2379.1,0.3575]
[1725994189376,4.20174,2380.0,2379.1,0.3575]
[1725994190863,3.0,2379.9,2379.1,0.3575]
[1725994191254,3.0,2380.1,2379.1,0.3575]
[1725994191573,3.90936366,2380.1,2379.1,0.3575]
[1725994191777,3.0,2380.1,2379.1,0.3575]
[1725994191974,4.20137,2380.2,2379.1,0.3575]
[1725994192178,9.67331241,2380.4,2379.3,0.3575]
[1725994192394,9.67331241,2380.4,2379.5,0.3575]
[1725994192682,5.47224241,2380.4,2379.5,0.3575]
[1725994192874,3.59634738,2380.4,2379.5,0.3575]
[1725994193078,4.28,2380.5,2379.6,0.08403836]
[1725994193491,4.2423229,2380.6,2379.6,0.08403836]
[1725994193987,4.2423229,2380.6,2379.7,0.3575]
[1725994193988,4.2423129,2380.6,2379.7,0.3575]
[1725994194197,3.0,2380.5,2379.7,0.3575]
[1725994194494,0.55,2380.4,2379.7,0.3575]
[1725994195190,3.0,2380.5,2379.7,0.3575]
[1725994195486,3.88584919,2380.6,2379.7,0.3575]
[1725994196197,3.84426629,2380.6,2379.7,0.3575]
[1725994196493,3.88934229,2380.6,2379.7,0.3575]
[1725994196989,5.55990223,2380.5,2379.7,0.3575]
[1725994197288,4.795996,2380.5,2379.7,0.3575]
[1725994197504,8.996906,2380.5,2379.7,0.3575]
[1725994197797,4.20101,2380.4,2379.7,0.3575]
[1725994197989,0.55,2380.3,2379.7,0.3575]
[1725994198283,4.75124,2380.3,2379.7,0.3575]
[1725994198590,0.55,2380.3,2379.7,0.3575]
[1725994198796,0.045076,2380.5,2379.7,0.3575]
[1725994199098,0.045076,2380.5,2379.9,0.3575]
[1725994199281,0.045076,2380.5,2380.1,0.3575]
[1725994200646,4.20189,2379.9,2378.9,0.78922066]
[1725994200851,0.55,2379.8,2379.2,0.3575]
[1725994201285,0.0079925,2379.8,2379.2,0.3575]
[1725994202261,0.0079925,2379.8,2379.4,0.3575]
[1725994202591,0.0079925,2379.8,2379.1,4.89220658]
[1725994202592,0.0079925,2379.8,2379.6,0.3575]
[1725994206064,0.0079925,2379.8,2378.9,0.08405451]
[1725994206298,0.0079925,2379.8,2378.8,0.3575]
[1725994206622,0.0079925,2379.8,2379.1,0.3575]
[1725994206764,0.0079925,2379.8,2379.2,0.08404525]
[1725994206967,0.0079925,2379.8,2379.1,0.73696573]
[1725994207167,0.0079925,2379.8,2379.1,0.3575]
[1725994210357,0.0079925,2379.8,2379.2,0.08405084]
[1725994210755,0.0079925,2379.8,2379.1,0.44155126]
[1725994211450,4.2101125,2379.8,2379.1,0.3575]
[1725994211657,0.42101125,2379.7,2379.1,0.3575]
[1725994211964,0.55,2379.6,2379.1,0.3575]
[1725994212336,0.55,2379.8,2379.1,0.3575]
[1725994212540,0.0079925,2379.7,2379.1,0.3575]
[1725994216485,0.0079925,2379.7,2379.2,0.08405219]
[1725994218308,0.0079925,2379.7,2379.1,3.3575]
[1725994218486,0.0079925,2379.7,2379.2,0.90901449]
[1725994218696,0.0079925,2379.7,2379.3,0.08404383]
[1725994218999,0.0079925,2379.7,2379.1,3.3575]
[1725994219199,0.0079925,2379.7,2379.1,0.3575]
[1725994220114,0.0079925,2379.7,2378.7,0.3575]
[1725994220479,4.2102725,2379.7,2378.7,0.3575]
[1725994220822,8.17348725,2379.6,2378.7,0.3575]
[1725994220989,12.58848725,2379.6,2378.7,0.3575]
[1725994221193,4.415,2379.3,2378.2,0.3575]
[1725994221390,4.75309,2379.2,2378.2,0.3575]
[1725994221607,4.20329,2379.1,2378.2,0.3575]
[1725994221779,1.025329,2379.0,2378.2,0.3575]
[1725994222777,0.55,2379.0,2378.2,0.3575]
[1725994222979,0.55,2379.1,2378.2,0.3575]
[1725994223589,4.20346,2379.0,2378.2,0.3575]
[1725994223974,0.55,2378.9,2378.2,0.3575]
[1725994224621,0.55,2379.1,2378.2,0.3575]
[1725994224802,1.690614,2379.1,2378.2,0.3575]
[1725994225382,4.20352,2379.0,2378.2,0.3575]
[1725994225583,0.55,2378.9,2378.2,0.3575]
[1725994225785,7.20345,2379.0,2378.2,0.3575]
[1725994226051,0.55,2378.9,2378.2,0.3575]
[1725994227351,0.55,2379.1,2378.2,0.3575]
[1725994227554,4.75328,2379.1,2378.2,0.3575]
[1725994227850,3.775328,2379.0,2378.2,0.3575]
[1725994228018,0.55,2378.9,2378.2,0.3575]
[1725994229465,7.75358,2379.0,2378.2,0.3575]
[1725994229749,3.55,2379.0,2378.2,0.3575]
[1725994230111,3.0,2379.2,2378.3,0.08408983]
[1725994230346,4.20269,2379.5,2378.3,0.66873044]
[1725994230347,3.0,2379.4,2378.3,0.66873044]
[1725994230704,4.20305,2379.3,2378.2,0.3575]
[1725994230906,3.0,2379.2,2378.2,0.3575]
[1725994231156,4.20337,2379.1,2378.2,0.3575]
[1725994231503,0.55,2379.0,2378.2,0.3575]
[1725994231707,7.05176,2379.0,2378.2,0.3575]
[1725994231944,0.705176,2378.9,2378.2,0.3575]
[1725994232335,0.55,2378.8,2378.2,0.3575]
[1725994232553,0.55,2378.8,2377.8,0.3575]
[1725994232707,0.55,2378.8,2377.9,1.04089627]
[1725994232907,0.55,2378.8,2377.9,0.08409668]
[1725994233124,0.55,2378.8,2377.9,0.6409126]
[1725994233456,2.265,2377.9,2377.6,5.26751375]
[1725994233783,2.265,2377.9,2376.0,1.33192849]
[1725994233784,4.20839,2376.2,2376.0,1.33192849]
[1725994233912,0.420839,2376.2,2376.0,4.2456935]
[1725994234110,4.20751,2376.7,2376.0,0.0370835]
[1725994234306,4.20744,2376.8,2376.0,4.2458135]
[1725994234564,5.265,2376.9,2376.5,4.20785]
[1725994234726,0.87987213,2377.3,2376.5,4.20775]
[1725994234917,0.87987213,2377.3,2376.0,4.32993458]
[1725994234918,3.0,2377.1,2376.3,4.2081]
[1725994235119,4.20675,2377.2,2376.3,4.2081]
[1725994235349,3.420675,2377.1,2376.3,4.2081]
[1725994235529,4.20709,2377.0,2376.3,4.2081]
[1725994235728,3.55,2376.9,2376.3,4.2081]
[1725994236042,7.75717,2376.9,2376.2,4.20836]
[1725994236254,5.24152685,2376.9,2376.2,4.20836]
[1725994236754,5.24152685,2376.9,2376.0,0.0370835]
[1725994236755,9.09965658,2376.8,2376.0,0.0370835]
[1725994236957,0.55,2376.7,2376.0,0.0370835]
[1725994237125,3.55,2376.7,2376.0,0.0370835]
[1725994237337,4.49489768,2376.7,2376.0,4.2457735]
[1725994237732,3.0,2376.6,2376.1,4.20853]
[1725994237935,0.55,2376.5,2376.1,4.20853]
[1725994238310,0.55,2376.7,2376.0,8.4543535]
[1725994238547,1.325735,2376.7,2376.0,4.2457135]
[1725994239229,5.533255,2376.7,2376.0,4.2457135]
[1725994239432,3.0,2376.6,2376.0,4.2457135]
[1725994239647,0.55,2376.5,2376.1,4.20857]
[1725994239949,3.0,2376.6,2376.1,4.20857]
[1725994240131,0.55,2376.5,2376.1,4.20857]
[1725994240556,0.55,2376.5,2376.0,4.2457135]
[1725994241487,0.55,2376.5,2376.1,4.20847]
[1725994241650,0.55,2376.5,2376.2,4.20836]
[1725994242032,0.55,2376.6,2376.2,4.20836]
[1725994242237,4.20712,2377.0,2376.0,0.0370835]
[1725994242460,5.31288158,2377.1,2376.1,4.20844]
[1725994242778,4.20739,2376.8,2376.1,4.20844]
[1725994242974,4.20739,2376.8,2376.2,4.20839]
[1725994243186,4.20708,2377.0,2376.2,4.20839]
[1725994243384,0.95199616,2376.9,2376.3,4.2081]
[1725994243676,4.50199616,2376.9,2376.4,4.20803]
[1725994243848,4.20736,2376.8,2376.2,4.20839]
[1725994244179,3.55,2376.7,2376.0,4.2457335]
[1725994244350,3.55,2376.7,2376.0,4.2457135]
[1725994244677,3.55,2376.7,2376.1,4.20847]
[1725994244835,3.55,2376.7,2376.0,8.4543135]
[1725994244836,8.91106796,2376.7,2376.0,8.4543135]
[1725994245033,4.70341796,2376.7,2376.2,4.20829]
[1725994245237,4.70341796,2376.7,2376.2,4.20826]
[1725994245484,0.55,2376.7,2376.2,4.20826]
[1725994245638,0.55,2376.8,2376.3,4.20821]
[1725994245844,4.75733,2376.8,2376.2,4.20826]
[1725994246178,3.0,2376.7,2376.2,4.15826]
[1725994246477,0.55,2376.6,2376.1,4.20853]
[1725994246687,4.75773,2376.6,2376.0,4.2457435]
[1725994246845,5.6410763,2376.6,2376.0,4.2457435]
[1725994247649,5.6410763,2376.6,2376.0,4.2457235]
[1725994248031,5.6410763,2376.6,2376.1,4.20857]
[1725994248233,4.20816,2376.4,2376.0,0.0370835]
[1725994248464,10.82814,2376.1,2376.0,0.0370835]
[1725994248665,4.89220658,2376.2,2375.3,0.0370835]
[1725994248666,8.41962,2375.4,2375.3,0.0370835]
[1725994249054,11.96962,2375.4,2375.3,0.0370835]
[1725994249249,13.407682,2375.4,2375.3,0.0370835]
[1725994249453,9.197872,2375.4,2375.3,0.0370835]
[1725994249845,4.988062,2375.4,2375.3,0.0370835]
[1725994250043,3.55,2375.4,2375.3,0.0370835]
[1725994251449,7.75981,2375.4,2375.3,0.0370835]
[1725994251761,3.55,2375.4,2375.3,0.0370835]
[1725994253501,0.55,2375.4,2375.3,0.0370835]
[1725994254000,4.75973,2375.5,2375.3,0.0370835]
[1725994254169,3.0,2375.4,2375.3,0.0370835]
[1725994254369,3.55,2375.4,2375.3,0.0370835]
[1725994254577,0.55,2375.4,2375.3,0.0370835]
[1725994256292,0.55,2375.5,2375.3,0.0370835]
[1725994256507,3.0,2375.6,2375.3,4.2469835]
[1725994256660,4.89220658,2376.1,2375.3,4.2469835]
[1725994256661,4.20873,2376.1,2375.5,4.20954]
[1725994256962,4.20866,2376.1,2375.6,4.20942]
[1725994257163,4.20894,2375.9,2375.5,0.0236316]
[1725994257360,4.20877,2376.0,2375.5,4.2332516]
[1725994257583,9.25891126,2376.2,2375.6,4.20936]
[1725994257769,5.05039126,2376.2,2375.7,4.20928]
[1725994257985,5.05039126,2376.2,2375.7,8.41846]
[1725994258189,0.84187126,2376.2,2375.7,4.20918]
[1725994258409,0.84187126,2376.2,2375.6,0.0236316]
[1725994258410,4.20817,2376.4,2375.9,4.20884]
[1725994258584,4.20805,2376.4,2375.9,4.2088]
[1725994258784,6.3987592,2376.6,2376.0,4.20864]
[1725994259006,4.20791,2376.5,2376.0,4.20864]
[1725994259233,1.3076329,2376.6,2376.1,4.20844]
[1725994259400,1.3076329,2376.6,2376.3,4.20813]
[1725994259732,4.20719,2376.9,2376.4,4.20794]
[1725994259934,8.62211,2377.0,2376.4,4.20794]
[1725994260132,5.069441,2376.9,2376.3,4.20805]
[1725994260629,5.069441,2376.9,2376.4,4.20793]
[1725994260835,0.862211,2376.9,2375.6,2.2964316]
[1725994261047,4.20711,2377.0,2376.5,4.20785]
[1725994261048,8.62211,2377.0,2376.5,4.20785]
[1725994261223,4.20709,2377.0,2376.4,4.20788]
[1725994261537,4.2069,2377.1,2376.6,4.20767]
[1725994261685,4.2069,2377.1,2376.4,4.20793]
[1725994261686,4.20709,2377.0,2376.4,8.41585]
[1725994261890,4.20757,2376.7,2376.2,4.20826]
[1725994262240,8.62228,2376.9,2375.8,4.2091]
[1725994262438,0.36036867,2377.0,2376.3,4.20819]
[1725994262740,0.36036867,2377.0,2376.4,4.20794]
[1725994262741,4.20717,2376.9,2376.4,4.20794]
[1725994262887,4.20717,2376.9,2376.5,8.41551]
[1725994262888,3.55,2376.8,2376.5,8.41551]
[1725994263235,3.55,2376.8,2376.5,4.20775]
[1725994263447,3.0,2376.7,2376.5,4.20775]
[1725994263590,0.55,2376.6,2376.5,4.20775]
[1725994263926,0.55,2376.8,2376.5,4.20775]
[1725994264288,0.55,2376.8,2376.3,8.41613]
[1725994264592,1.90019785,2376.8,2376.1,4.20845]
[1725994264788,1.90019785,2376.8,2376.2,4.2083]
[1725994264789,4.2076,2376.7,2376.2,4.2083]
[1725994264983,0.55,2376.6,2376.1,4.20845]
[1725994265205,0.55,2376.6,2376.3,4.20821]
[1725994265488,0.55,2376.7,2376.3,4.20821]
[1725994265724,0.55,2376.7,2376.1,4.20845]
[1725994265725,0.55,2376.7,2376.5,4.20778]
[1725994265888,0.55,2376.7,2376.6,8.41538]
[1725994266100,0.55,2376.7,2376.6,4.20769]
[1725994266427,0.55,2376.9,2376.6,4.20769]
[1725994266932,0.55,2376.9,2376.5,4.20785]
[1725994267240,3.55,2376.9,2376.5,4.20785]
[1725994267533,3.55,2376.9,2376.4,4.20789]
[1725994267534,3.55,2376.9,2376.4,4.20787]
[1725994267715,8.56897687,2376.9,2376.4,8.41582]
[1725994268091,4.36173687,2376.9,2376.5,4.20786]
[1725994269066,4.20768,2376.7,2376.3,3.49]
[1725994269216,0.55,2376.6,2376.3,3.49]
[1725994269567,4.20788,2376.5,2376.3,3.49]
[1725994269719,0.55,2376.4,2376.3,3.49]
[1725994270871,0.55,2376.4,2376.3,7.69822]
[1725994271161,3.0,2376.7,2376.3,7.69822]
[1725994271162,0.55,2376.6,2376.3,7.69822]
[1725994271653,0.55,2376.6,2376.3,3.49]
[1725994272187,8.41608,2376.4,2376.3,3.49]
[1725994272339,9.965408,2376.4,2376.3,3.49]
[1725994272545,13.515408,2376.4,2376.3,3.49]
[1725994272771,9.307368,2376.4,2376.3,3.49]
[1725994273042,13.722368,2376.4,2376.3,3.49]
[1725994273242,5.099328,2376.4,2376.3,3.49]
[1725994274780,0.55,2376.4,2376.3,7.69822]
[1725994275693,5.01900687,2376.9,2376.4,4.20802]
[1725994276645,4.20804,2376.4,2376.3,3.49]
[1725994276840,3.841582,2376.4,2376.3,3.49]
[1725994277038,0.55,2376.4,2376.3,3.49]
[1725994278893,3.0,2376.7,2376.3,7.69822]
[1725994279099,3.0,2376.8,2376.5,4.20786]
[1725994279283,0.55,2376.8,2376.5,4.20786]
[1725994279706,8.01890687,2376.9,2376.5,4.20786]
[1725994280397,8.01890687,2376.9,2376.4,4.20803]
[1725994280908,3.81173687,2376.9,2376.5,4.20785]
[1725994281116,0.55,2376.8,2376.3,7.69816]
[1725994281405,4.20761,2376.7,2376.3,7.69818]
[1725994281563,3.55,2376.6,2376.3,7.69818]
[1725994281764,7.75777,2376.6,2376.3,3.49]
[1725994281985,3.55,2376.6,2376.4,4.20791]
[1725994282198,0.55,2376.6,2376.4,4.20791]
[1725994282505,3.0,2376.5,2376.3,7.6982]
[1725994282704,0.55,2376.6,2376.3,7.6982]
[1725994283006,4.415,2376.5,2376.3,3.49]
[1725994283210,0.55,2376.4,2376.3,3.49]
[1725994283361,16.38108,2376.4,2376.3,3.49]
[1725994283610,19.07985213,2376.4,2376.3,3.49]
[1725994283809,15.4221941,2376.4,2376.3,3.49]
[1725994284023,20.29402893,2376.4,2376.3,3.49]
[1725994284237,21.61383713,2376.4,2376.3,3.49]
[1725994284417,17.40579713,2376.4,2376.3,3.49]
[1725994284618,16.96627734,2376.4,2376.3,3.49]
[1725994285862,21.61383713,2376.4,2376.3,3.49]
[1725994286418,17.40579713,2376.4,2376.3,3.49]
[1725994286616,16.96623441,2376.4,2376.3,3.49]
[1725994286860,30.71408371,2376.4,2376.3,3.49]
[1725994287008,31.59500967,2376.4,2376.3,3.49]
[1725994287239,29.39427551,2376.4,2376.3,3.49]
[1725994288063,29.39287358,2376.4,2376.3,3.49]
[1725994289037,10.68976,2375.7,2375.6,0.0236316]
[1725994289238,13.68976,2375.7,2375.6,0.0236316]
[1725994289545,15.12014019,2375.7,2375.6,0.0236316]
[1725994289854,14.23976,2375.7,2375.6,0.0236316]
[1725994290040,15.12014019,2375.7,2375.6,0.0236316]
[1725994290235,9.99782297,2375.7,2375.6,0.0236316]
[1725994290477,7.75928,2375.7,2375.6,0.0236316]
[1725994291351,3.55,2375.7,2375.6,0.0236316]
[1725994291681,5.08905019,2376.1,2375.6,4.2330516]
[1725994291987,0.88038019,2376.1,2375.6,4.2329916]
[1725994292334,0.88038019,2376.1,2375.7,4.20928]
[1725994292534,0.88038019,2376.1,2375.6,4.2329916]
[1725994292780,0.88038019,2376.1,2375.7,4.20925]
[1725994292934,0.55,2376.0,2375.6,4.2329916]
[1725994294278,0.55,2376.0,2375.6,4.2330816]
[1725994294952,0.55,2376.0,2375.6,4.2329816]
[1725994295147,0.55,2376.0,2375.7,4.20927]
[1725994295467,0.55,2376.0,2375.6,4.65627976]
[1725994295647,0.55,2376.0,2375.6,4.2329816]
[1725994296346,0.55,2376.0,2375.6,8.4422516]
[1725994296599,0.55,2376.0,2375.7,4.20923]
[1725994296889,0.55,2376.0,2375.6,4.2329316]
[1725994297551,0.55,2376.0,2375.7,4.20925]
[1725994298562,0.88038019,2376.3,2375.8,2.2835]
[1725994298760,1.76076039,2376.5,2376.1,4.20856]
[1725994298761,0.88038019,2376.5,2376.1,4.20856]
[1725994298959,0.88038019,2376.5,2376.2,4.20834]
[1725994299160,0.88038019,2376.6,2376.3,4.2082]
[1725994299699,0.88038019,2376.6,2376.3,4.20813]
[1725994299909,0.88038019,2376.5,2375.9,4.20881]
[1725994300205,0.88038019,2376.5,2375.6,4.2330916]
[1725994300206,4.2087,2376.1,2375.6,4.2330916]
[1725994300511,9.29780019,2376.1,2375.6,4.2330916]
[1725994300673,0.88038019,2376.0,2375.7,4.20925]
[1725994300876,5.08905019,2376.1,2375.7,4.20925]
[1725994301100,0.55,2376.0,2375.8,4.20909]
[1725994301297,3.0,2376.1,2375.8,4.209]
[1725994301602,0.55,2376.0,2375.6,8.4422716]
[1725994301903,0.55,2376.0,2375.6,8.4423116]
[1725994302350,8.41856,2375.7,2375.6,0.0236316]
[1725994302631,17.72713029,2375.7,2375.6,0.0236316]
[1725994302842,18.16732039,2375.7,2375.6,0.0236316]
[1725994302982,14.17041863,2375.7,2375.6,0.0236316]
[1725994303183,17.4423843,2375.7,2375.6,0.0236316]
[1725994303384,17.00296613,2375.7,2375.6,0.0236316]
[1725994303892,15.24052567,2375.7,2375.6,0.0236316]
[1725994304433,17.0029177,2375.7,2375.6,0.0236316]
[1725994305630,12.35245112,2375.7,2375.6,0.0236316]
[1725994305836,9.08048545,2375.7,2375.6,0.0236316]
[1725994306037,4.32120545,2375.7,2375.6,0.0236316]
[1725994306227,0.88071192,2375.7,2375.6,0.0236316]
[1725994306425,3.88071192,2375.7,2375.6,0.0236316]
[1725994306796,14.09246439,2375.7,2375.6,0.0236316]
[1725994307331,9.88318439,2375.7,2375.6,0.0236316]
[1725994307892,9.99260141,2375.7,2375.6,0.0236316]
[1725994308307,14.20187172,2375.7,2375.6,0.0236316]
[1725994308511,14.64246439,2375.7,2375.6,0.0236316]
[1725994309119,5.78319924,2375.7,2375.6,0.0236316]
[1725994309557,9.99247924,2375.7,2375.6,0.0236316]
[1725994310119,5.78319924,2375.7,2375.6,0.0236316]
[1725994310663,9.99256394,2375.7,2375.6,0.0236316]
[1725994311019,9.11197894,2375.7,2375.6,0.0236316]
[1725994311463,9.99254181,2375.7,2375.6,0.0236316]
[1725994312334,4.90269894,2375.7,2375.6,0.0236316]
[1725994312631,5.78326181,2375.7,2375.6,0.0236316]
[1725994312837,9.99254181,2375.7,2375.6,0.0236316]
[1725994313361,5.78326181,2375.7,2375.6,0.0236316]
[1725994313561,4.43056287,2375.7,2375.6,0.0236316]
[1725994313790,3.55,2375.7,2375.6,0.0236316]
[1725994313996,0.55,2375.7,2375.6,0.0236316]
[1725994314495,1.43056287,2375.7,2375.6,0.0236316]
[1725994314783,0.55,2375.7,2375.6,0.0236316]
[1725994315398,1.43056287,2375.7,2375.6,0.0236316]
[1725994315748,0.55,2375.7,2375.6,0.0236316]
[1725994316554,0.55,2375.7,2375.6,4.2330916]
[1725994316749,3.0,2375.9,2375.6,4.2329916]
[1725994316949,3.0,2375.9,2375.6,0.0236316]
[1725994316950,0.55,2375.8,2375.6,0.0236316]
[1725994317389,0.88056287,2375.9,2375.8,4.2091]
[1725994317588,1.32120545,2376.0,2375.3,0.08419428]
[1725994317589,0.88056287,2376.0,2375.7,4.20924]
[1725994317950,5.90667891,2376.0,2375.4,4.2434431]
[1725994318192,0.88056287,2375.8,2375.6,4.20943]
[1725994318360,2.20176832,2375.9,2375.5,4.20956]
[1725994318561,0.88056287,2375.9,2375.5,4.20953]
[1725994318762,0.55,2375.8,2375.7,4.20928]
[1725994318979,0.55,2375.8,2375.4,0.0337331]
[1725994318980,0.55,2375.8,2375.6,8.41873]
[1725994319158,3.88056287,2375.9,2375.7,4.20919]
[1725994319352,0.88056287,2376.0,2375.7,4.20919]
[1725994319553,0.55,2375.9,2375.8,4.2091]
[1725994319889,3.88056287,2376.0,2375.7,8.4279627]
[1725994320050,0.88056287,2376.0,2375.8,4.20909]
[1725994320255,0.88056287,2376.0,2375.7,4.2187727]
[1725994320256,5.08940287,2376.0,2375.7,0.0095927]
[1725994320450,4.9507397,2375.9,2375.7,0.0095927]
[1725994320751,0.88056287,2375.8,2375.7,0.0095927]
[1725994320956,0.55,2375.8,2375.7,0.0095927]
[1725994321532,1.43056287,2375.8,2375.7,0.0095927]
[1725994321740,1.87120545,2375.8,2375.7,0.0095927]
[1725994321935,1.43122762,2375.8,2375.7,0.0095927]
[1725994322137,6.81271413,2375.8,2375.7,0.0095927]
[1725994322312,5.60361962,2375.8,2375.7,0.0095927]
[1725994322509,4.4314143,2375.8,2375.7,0.0095927]
[1725994322710,4.43140499,2375.8,2375.7,0.0095927]
[1725994322922,7.988,2375.8,2375.7,0.0095927]
[1725994323101,4.43139161,2375.8,2375.7,0.0095927]
[1725994323302,4.87120545,2375.8,2375.7,0.0095927]
[1725994323527,1.87120545,2375.8,2375.7,0.0095927]
[1725994324096,0.88148699,2375.8,2375.7,4.2188727]
[1725994324327,1.76239203,2376.0,2375.7,4.2188727]
[1725994324328,0.88148699,2376.0,2375.9,4.20893]
[1725994324534,1.32120545,2376.1,2376.0,4.20875]
[1725994324535,0.88148699,2376.1,2376.0,4.20875]
[1725994324801,0.88148699,2376.2,2376.0,4.20875]
[1725994325021,0.88148699,2376.2,2376.1,4.20857]
[1725994325621,0.88148699,2376.3,2376.1,4.20857]
[1725994325824,0.88148699,2376.2,2376.0,4.20875]
[1725994326041,0.88148699,2376.2,2375.9,0.0095927]
[1725994326042,0.88148699,2376.1,2375.9,4.2184827]
[1725994326364,0.88148699,2376.0,2375.9,0.0095927]
[1725994326716,1.32120545,2376.0,2375.9,0.0095927]
[1725994326922,0.55,2376.0,2375.9,0.0095927]
[1725994327222,0.88195952,2376.2,2376.1,4.20857]
[1725994327419,0.88195952,2376.2,2376.1,8.41714]
[1725994327666,0.88195952,2376.3,2376.1,4.20857]
[1725994327867,0.88195952,2376.3,2376.1,8.41705]
[1725994328160,8.4175,2376.0,2375.9,0.0095927]
[1725994328362,16.55243315,2376.0,2375.9,0.0095927]
[1725994328919,17.10243315,2376.0,2375.9,0.0095927]
[1725994329170,16.39850036,2376.0,2375.9,0.0095927]
[1725994329325,2.49200331,2376.0,2375.9,0.0095927]
[1725994329526,6.96541611,2376.0,2375.9,0.0095927]
[1725994329964,2.75672452,2376.0,2375.9,0.0095927]
[1725994330137,0.55,2376.0,2375.9,0.0095927]
[1725994330322,13.15946533,2376.2,2375.9,0.0095927]
[1725994330323,3.1959361,2376.1,2375.9,0.0095927]
[1725994330518,6.41559931,2376.0,2375.9,0.0095927]
[1725994330723,4.75875,2376.0,2375.9,0.0095927]
[1725994330924,6.96554407,2376.0,2375.9,0.0095927]
[1725994331324,4.75875,2376.0,2375.9,0.0095927]
[1725994332039,0.55,2376.0,2375.9,0.0095927]
[1725994332222,2.20699986,2376.0,2375.9,0.0095927]
[1725994332423,3.55,2376.0,2375.9,0.0095927]
[1725994332624,2.31559078,2376.0,2375.9,0.0095927]
[1725994332929,1.32408413,2376.0,2375.9,0.0095927]
[1725994333343,1.32408413,2376.0,2375.9,4.2185227]
[1725994333761,0.88263076,2376.0,2375.9,4.2185227]
[1725994334171,0.88263076,2376.1,2375.9,4.2185227]
[1725994334373,1.32408413,2376.1,2376.0,4.20875]
[1725994334540,0.88252378,2376.1,2376.0,4.20875]
[1725994334725,0.88252378,2376.1,2375.9,4.2184927]
[1725994335071,0.88252378,2376.0,2375.9,0.0095927]
[1725994335470,0.88252378,2376.0,2375.9,4.2185227]
[1725994335863,0.88252378,2376.0,2375.9,0.0095927]
[1725994337170,1.87408413,2376.0,2375.9,0.0095927]
[1725994337375,0.55,2376.0,2375.9,0.0095927]
[1725994337532,1.87408413,2376.0,2375.9,0.0095927]
[1725994337729,0.8825532,2376.0,2375.9,0.0095927]
[1725994338031,0.88249588,2376.0,2375.9,0.0095927]
[1725994338258,1.32408413,2376.0,2375.9,0.0095927]
[1725994338461,0.88252769,2376.0,2375.9,4.64037797]
[1725994338661,0.88252769,2376.1,2375.9,0.43144797]